[Event "MCR rapid mládeže 2023 U16"]
[Site "Harachov, Czech Republic"]
[Date "2023.09.09"]
[Round "2.1"]
[White "Roubal, Matyas"]
[Black "Martirosyan, David"]
[Result "1/2-1/2"]
[TimeControl "20min+5s/move"]
[WhiteElo "1911"]
[BlackElo "1861"]

1. e4 {[%clk 00:20:08]} {[%emt 00:00:02]} e5 {[%clk 00:20:10]} {[%emt
00:00:01]} 2. Nf3 {[%clk 00:20:06]} {[%emt 00:00:06]} Nf6 {[%clk 00:20:13]}
{[%emt 00:00:01]} 3. Nxe5 {[%clk 00:19:44]} {[%emt 00:00:27]} d6 {[%clk
00:20:17]} {[%emt 00:00:01]} 4. Nf3 {[%clk 00:19:47]} {[%emt 00:00:02]} Nxe4
{[%clk 00:20:21]} {[%emt 00:00:02]} 5. Nc3 {[%clk 00:18:57]} {[%emt 00:00:55]}
Nxc3 {[%clk 00:20:24]} {[%emt 00:00:02]} 6. dxc3 {[%clk 00:19:00]} {[%emt
00:00:02]} Be7 {[%clk 00:20:27]} {[%emt 00:00:02]} 7. Be3 {[%clk 00:18:40]}
{[%emt 00:00:25]} Nc6 {[%clk 00:20:29]} {[%emt 00:00:03]} 8. Qd2 {[%clk
00:18:15]} {[%emt 00:00:29]} Be6 {[%clk 00:20:30]} {[%emt 00:00:04]} 9. O-O-O
{[%clk 00:18:03]} {[%emt 00:00:17]} Qd7 {[%clk 00:20:32]} {[%emt 00:00:03]} 10.
Ng5 {[%clk 00:18:01]} {[%emt 00:00:08]} Bxg5 {[%clk 00:20:32]} {[%emt
00:00:05]} 11. Bxg5 {[%clk 00:18:04]} {[%emt 00:00:02]} h6 {[%clk 00:20:00]}
{[%emt 00:00:37]} 12. Be3 {[%clk 00:17:29]} {[%emt 00:00:39]} a6 {[%clk
00:19:24]} {[%emt 00:00:41]} 13. Be2 {[%clk 00:17:16]} {[%emt 00:00:18]} O-O-O
{[%clk 00:19:18]} {[%emt 00:00:11]} 14. f4 {[%clk 00:16:40]} {[%emt 00:00:41]}
Rhe8 {[%clk 00:17:57]} {[%emt 00:01:26]} 15. h3 {[%clk 00:15:36]} {[%emt
00:01:09]} f5 {[%clk 00:17:28]} {[%emt 00:00:34]} 16. Rhe1 {[%clk 00:14:42]}
{[%emt 00:00:58]} g6 {[%clk 00:16:05]} {[%emt 00:01:28]} 17. Bf2 {[%clk
00:13:52]} {[%emt 00:00:55]} Kb8 {[%clk 00:13:59]} {[%emt 00:02:12]} 18. Bh4
{[%clk 00:13:12]} {[%emt 00:00:44]} Rc8 {[%clk 00:14:01]} {[%emt 00:00:03]} 19.
Bf3 {[%clk 00:13:06]} {[%emt 00:00:11]} Bf7 {[%clk 00:12:31]} {[%emt 00:01:35]}
20. b3 {[%clk 00:11:08]} {[%emt 00:02:02]} Rxe1 {[%clk 00:10:54]} {[%emt
00:01:42]} 21. Rxe1 {[%clk 00:10:38]} {[%emt 00:00:36]} Re8 {[%clk 00:10:58]}
{[%emt 00:00:02]} 22. Kb2 {[%clk 00:09:02]} {[%emt 00:01:41]} Rxe1 {[%clk
00:09:47]} {[%emt 00:01:16]} 23. Qxe1 {[%clk 00:09:05]} {[%emt 00:00:02]} Qe6
{[%clk 00:09:38]} {[%emt 00:00:14]} 24. Qxe6 {[%clk 00:08:55]} {[%emt
00:00:15]} Bxe6 {[%clk 00:09:42]} {[%emt 00:00:01]} 25. g4 {[%clk 00:08:25]}
{[%emt 00:00:35]} Kc8 {[%clk 00:09:13]} {[%emt 00:00:34]} 26. Bf6 {[%clk
00:08:17]} {[%emt 00:00:13]} Kd7 {[%clk 00:09:02]} {[%emt 00:00:17]} 27. Bg7
{[%clk 00:07:40]} {[%emt 00:00:41]} fxg4 {[%clk 00:07:28]} {[%emt 00:01:39]} 28.
hxg4 {[%clk 00:07:34]} {[%emt 00:00:10]} Ne7 {[%clk 00:06:00]} {[%emt
00:01:34]} 29. Bxh6 {[%clk 00:07:30]} {[%emt 00:00:10]} Bd5 {[%clk 00:06:04]}
{[%emt 00:00:01]} 30. Be2 {[%clk 00:06:28]} {[%emt 00:01:06]} Ke6 {[%clk
00:05:20]} {[%emt 00:00:49]} 31. c4 {[%clk 00:04:46]} {[%emt 00:01:47]} Bg2
{[%clk 00:04:55]} {[%emt 00:00:30]} 32. Kc3 {[%clk 00:04:31]} {[%emt 00:00:20]}
Ng8 {[%clk 00:04:21]} {[%emt 00:00:39]} 33. Bg5 {[%clk 00:04:32]} {[%emt
00:00:04]} Nf6 {[%clk 00:03:58]} {[%emt 00:00:28]} 34. Bxf6 {[%clk 00:04:20]}
{[%emt 00:00:16]} Kxf6 {[%clk 00:04:01]} {[%emt 00:00:02]} 35. Kd4 {[%clk
00:04:18]} {[%emt 00:00:08]} b6 {[%clk 00:02:47]} {[%emt 00:01:19]} 36. Ke3
{[%clk 00:04:11]} {[%emt 00:00:11]} Bc6 {[%clk 00:02:28]} {[%emt 00:00:23]} 37.
g5+ {[%clk 00:04:05]} {[%emt 00:00:12]} Kg7 {[%clk 00:01:15]} {[%emt 00:01:18]}
38. Bf3 {[%clk 00:04:08]} {[%emt 00:00:02]} Bd7 {[%clk 00:01:14]} {[%emt
00:00:07]} 39. c3 {[%clk 00:03:58]} {[%emt 00:00:15]} a5 {[%clk 00:01:11]}
{[%emt 00:00:08]} 40. a3 {[%clk 00:03:30]} {[%emt 00:00:32]} Bf5 {[%clk
00:00:58]} {[%emt 00:00:18]} 41. Kd4 {[%clk 00:02:50]} {[%emt 00:00:45]} Be6
{[%clk 00:00:59]} {[%emt 00:00:04]} 42. b4 {[%clk 00:02:34]} {[%emt 00:00:21]}
c5+ {[%clk 00:00:24]} {[%emt 00:00:41]} 43. Kd3 {[%clk 00:02:31]} {[%emt
00:00:08]} Bf5+ {[%clk 00:00:24]} {[%emt 00:00:05]} 44. Be4 {[%clk 00:02:33]}
{[%emt 00:00:02]} Be6 {[%clk 00:00:28]} 45. Bd5 {[%clk 00:02:11]} {[%emt
00:00:28]} Bf5+ {[%clk 00:00:32]} {[%emt 00:00:01]} 46. Ke3 {[%clk 00:02:11]}
{[%emt 00:00:04]} Bd7 {[%clk 00:00:25]} {[%emt 00:00:13]} 47. Be4 {[%clk
00:01:52]} {[%emt 00:00:24]} Be6 {[%clk 00:00:28]} {[%emt 00:00:02]} 48. Bd3
{[%clk 00:01:56]} {[%emt 00:00:01]} Kf7 {[%clk 00:00:18]} {[%emt 00:00:15]} 49.
Kf3 {[%clk 00:01:39]} {[%emt 00:00:21]} Kg7 {[%clk 00:00:20]} {[%emt 00:00:03]}
50. Ke4 {[%emt 00:00:34]} 1/2-1/2

[Event "MCR rapid mládeže 2023 U16"]
[Site "Harachov, Czech Republic"]
[Date "2023.09.09"]
[Round "2.2"]
[White "Bludsky, Hynek"]
[Black "Svadlenka, Dominik"]
[Result "0-1"]
[TimeControl "20min+5s/move"]
[WhiteElo "1547"]
[BlackElo "1588"]

1. e4 {[%clk 00:20:08]} {[%emt 00:00:01]} c6 {[%clk 00:20:09]} {[%emt
00:00:01]} 2. Nc3 {[%clk 00:20:11]} {[%emt 00:00:02]} d5 {[%clk 00:20:13]}
{[%emt 00:00:01]} 3. Nf3 {[%clk 00:20:14]} {[%emt 00:00:01]} dxe4 {[%clk
00:20:16]} {[%emt 00:00:02]} 4. Nxe4 {[%clk 00:20:18]} {[%emt 00:00:02]} Nf6
{[%clk 00:20:20]} {[%emt 00:00:02]} 5. Nxf6+ {[%clk 00:20:18]} {[%emt
00:00:05]} exf6 {[%clk 00:20:23]} {[%emt 00:00:02]} 6. d4 {[%clk 00:20:22]} Bd6
{[%clk 00:20:25]} {[%emt 00:00:04]} 7. c3 {[%clk 00:20:20]} {[%emt 00:00:06]}
O-O {[%clk 00:20:27]} {[%emt 00:00:04]} 8. Bd3 {[%clk 00:20:12]} {[%emt
00:00:13]} Re8+ {[%clk 00:20:30]} {[%emt 00:00:02]} 9. Be3 {[%clk 00:20:16]}
{[%emt 00:00:01]} Bg4 {[%clk 00:20:33]} {[%emt 00:00:02]} 10. O-O {[%clk
00:20:10]} {[%emt 00:00:11]} Nd7 {[%clk 00:20:26]} {[%emt 00:00:13]} 11. Re1
{[%clk 00:19:36]} {[%emt 00:00:38]} Nf8 {[%clk 00:20:23]} {[%emt 00:00:07]} 12.
h3 {[%clk 00:19:35]} {[%emt 00:00:07]} Bh5 {[%clk 00:20:26]} {[%emt 00:00:02]}
13. Rc1 {[%clk 00:19:37]} {[%emt 00:00:03]} Ne6 {[%clk 00:20:01]} {[%emt
00:00:30]} 14. Rc2 {[%clk 00:15:50]} {[%emt 00:03:52]} Bc7 {[%clk 00:19:57]}
{[%emt 00:00:10]} 15. Be2 {[%clk 00:14:58]} {[%emt 00:00:57]} Qd6 {[%clk
00:19:33]} {[%emt 00:00:28]} 16. g3 {[%clk 00:14:02]} {[%emt 00:01:02]} Rad8
{[%clk 00:18:29]} {[%emt 00:01:09]} 17. Nh2 {[%clk 00:13:15]} {[%emt 00:00:51]}
Bg6 {[%clk 00:18:24]} {[%emt 00:00:10]} 18. Rd2 {[%clk 00:12:38]} {[%emt
00:00:42]} f5 {[%clk 00:17:23]} {[%emt 00:01:06]} 19. f4 {[%clk 00:12:00]}
{[%emt 00:00:42]} Ng5 {[%clk 00:17:10]} {[%emt 00:00:18]} 20. Bd3 {[%clk
00:11:18]} {[%emt 00:00:47]} Ne4 {[%clk 00:16:02]} {[%emt 00:01:13]} 21. Bxe4
{[%clk 00:11:18]} {[%emt 00:00:06]} Rxe4 {[%clk 00:15:35]} {[%emt 00:00:31]} 22.
Kf2 {[%clk 00:09:01]} {[%emt 00:02:22]} Qe6 {[%clk 00:15:08]} {[%emt 00:00:32]}
23. Qb1 {[%clk 00:07:43]} {[%emt 00:01:23]} Re8 {[%clk 00:14:18]} {[%emt
00:00:55]} 24. Rd3 {[%clk 00:07:38]} {[%emt 00:00:10]} f6 {[%clk 00:12:59]}
{[%emt 00:01:24]} 25. Nf3 {[%clk 00:07:11]} {[%emt 00:00:32]} Qd7 {[%clk
00:10:42]} {[%emt 00:02:23]} 26. Nd2 {[%clk 00:06:05]} {[%emt 00:01:11]} R4e7
{[%clk 00:10:44]} {[%emt 00:00:02]} 27. Qc2 {[%clk 00:05:51]} {[%emt 00:00:19]}
Bf7 {[%clk 00:09:59]} {[%emt 00:00:50]} 28. b3 {[%clk 00:05:48]} {[%emt
00:00:08]} Bd5 {[%clk 00:09:16]} {[%emt 00:00:48]} 29. c4 {[%clk 00:05:38]}
{[%emt 00:00:16]} Be4 {[%clk 00:09:05]} {[%emt 00:00:16]} 30. Nxe4 {[%clk
00:05:41]} {[%emt 00:00:01]} Rxe4 {[%clk 00:08:56]} {[%emt 00:00:15]} 31. d5
{[%clk 00:04:54]} {[%emt 00:00:53]} cxd5 {[%clk 00:08:35]} {[%emt 00:00:25]} 32.
Rxd5 {[%clk 00:04:46]} {[%emt 00:00:13]} Qe6 {[%clk 00:05:47]} {[%emt
00:02:53]} 33. Qd3 {[%clk 00:03:22]} {[%emt 00:01:28]} h5 {[%clk 00:02:39]}
{[%emt 00:03:14]} 34. h4 {[%clk 00:02:36]} {[%emt 00:00:51]} Bxf4 {[%clk
00:01:40]} {[%emt 00:01:04]} 35. gxf4 {[%clk 00:02:08]} {[%emt 00:00:33]} Rxf4+
{[%clk 00:01:44]} {[%emt 00:00:01]} 36. Kg3 {[%clk 00:01:11]} {[%emt 00:01:00]}
Re4 {[%clk 00:01:44]} {[%emt 00:00:07]} 37. Kf2 {[%clk 00:00:20]} {[%emt
00:00:56]} f4 {[%clk 00:01:48]} {[%emt 00:00:02]} 38. Rd4 {[%clk 00:00:10]}
{[%emt 00:00:15]} Rxe3 {[%clk 00:01:48]} {[%emt 00:00:05]} 39. Rxe3 {[%clk
00:00:12]} {[%emt 00:00:04]} fxe3+ {[%clk 00:01:48]} {[%emt 00:00:04]} 40. Ke2
{[%clk 00:00:14]} {[%emt 00:00:02]} Qh3 {[%clk 00:01:48]} {[%emt 00:00:05]} 41.
Re4 {[%clk 00:00:09]} {[%emt 00:00:10]} Qg2+ {[%clk 00:01:51]} {[%emt
00:00:02]} 42. Kxe3 {[%clk 00:00:13]} {[%emt 00:00:02]} Qg3+ {[%clk 00:01:08]}
{[%emt 00:00:48]} 43. Kd4 {[%clk 00:00:13]} {[%emt 00:00:05]} Rd8+ {[%clk
00:01:10]} {[%emt 00:00:03]} 44. Ke3 {[%emt 00:00:03]} Re8+ {[%emt 00:00:01]}
45. Ke2 0-1

[Event "MCR rapid mládeže 2023 U16"]
[Site "Harachov, Czech Republic"]
[Date "2023.09.09"]
[Round "2.3"]
[White "Popov, Roman"]
[Black "Novotny, Dominik"]
[Result "1/2-1/2"]
[TimeControl "20min+5s/move"]
[WhiteElo "1751"]
[BlackElo "1707"]

1. d4 {[%clk 00:20:00]} {[%emt 00:00:09]} Nf6 {[%clk 00:20:08]} {[%emt
00:00:02]} 2. c4 {[%clk 00:20:03]} {[%emt 00:00:02]} e6 {[%clk 00:20:11]}
{[%emt 00:00:02]} 3. Nc3 {[%clk 00:20:04]} {[%emt 00:00:05]} Bb4 {[%clk
00:20:14]} {[%emt 00:00:02]} 4. a3 {[%clk 00:20:07]} {[%emt 00:00:02]} Bxc3+
{[%clk 00:20:17]} {[%emt 00:00:02]} 5. bxc3 {[%clk 00:20:11]} {[%emt 00:00:01]}
c5 {[%clk 00:20:21]} {[%emt 00:00:01]} 6. f3 {[%clk 00:19:26]} {[%emt
00:00:50]} Qa5 {[%clk 00:19:12]} {[%emt 00:01:13]} 7. Bd2 {[%clk 00:17:53]}
{[%emt 00:01:38]} Nc6 {[%clk 00:17:23]} {[%emt 00:01:54]} 8. e4 {[%clk
00:14:37]} {[%emt 00:03:21]} d6 {[%clk 00:16:10]} {[%emt 00:01:18]} 9. d5
{[%clk 00:13:03]} {[%emt 00:01:39]} Ne7 {[%clk 00:15:50]} {[%emt 00:00:24]} 10.
Bd3 {[%clk 00:12:45]} {[%emt 00:00:24]} Ng6 {[%clk 00:15:14]} {[%emt 00:00:41]}
11. f4 {[%clk 00:11:21]} {[%emt 00:01:29]} O-O {[%clk 00:14:05]} {[%emt
00:01:14]} 12. Ne2 {[%clk 00:07:00]} {[%emt 00:04:25]} Re8 {[%clk 00:12:40]}
{[%emt 00:01:31]} 13. Qc2 {[%clk 00:05:56]} {[%emt 00:01:09]} Qc7 {[%clk
00:11:35]} {[%emt 00:01:10]} 14. O-O {[%clk 00:04:20]} {[%emt 00:01:40]} exd5
{[%clk 00:10:56]} {[%emt 00:00:44]} 15. exd5 {[%clk 00:04:05]} {[%emt
00:00:20]} Bd7 {[%clk 00:08:07]} {[%emt 00:02:54]} 16. Ng3 {[%clk 00:02:47]}
{[%emt 00:01:23]} Re7 {[%clk 00:06:59]} {[%emt 00:01:14]} 17. Bxg6 {[%clk
00:00:24]} {[%emt 00:02:27]} hxg6 {[%clk 00:06:59]} {[%emt 00:00:05]} 18. f5
{[%emt 00:01:35]} gxf5 {[%clk 00:05:38]} {[%emt 00:00:01]} 19. Nxf5 {[%clk
00:00:17]} {[%emt 00:00:06]} Bxf5 {[%clk 00:05:35]} {[%emt 00:00:04]} 20. Qxf5
{[%clk 00:00:20]} {[%emt 00:00:03]} Rae8 {[%clk 00:05:29]} {[%emt 00:00:16]} 21.
Bh6 {[%clk 00:00:09]} {[%emt 00:00:15]} Re5 {[%clk 00:04:39]} {[%emt 00:00:55]}
22. Qf3 {[%clk 00:00:10]} {[%emt 00:00:04]} Ne4 {[%clk 00:01:33]} {[%emt
00:03:10]} 23. Bf4 {[%clk 00:00:09]} {[%emt 00:00:06]} R5e7 {[%clk 00:01:06]}
{[%emt 00:00:33]} 24. Rae1 {[%clk 00:00:08]} {[%emt 00:00:06]} Qa5 {[%clk
00:00:48]} {[%emt 00:00:23]} 25. Qg4 {[%clk 00:00:08]} {[%emt 00:00:06]} Nf6
{[%clk 00:00:38]} {[%emt 00:00:15]} 26. Qd1 {[%clk 00:00:08]} {[%emt 00:00:05]}
Qxc3 {[%clk 00:00:22]} {[%emt 00:00:20]} 27. Rxe7 {[%clk 00:00:09]} {[%emt
00:00:04]} Rxe7 {[%clk 00:00:26]} 28. Bxd6 {[%clk 00:00:12]} {[%emt 00:00:03]}
Re8 {[%clk 00:00:26]} {[%emt 00:00:05]} 29. Bxc5 {[%clk 00:00:10]} {[%emt
00:00:07]} Qxc4 {[%clk 00:00:29]} {[%emt 00:00:02]} 30. Bxa7 {[%clk 00:00:09]}
{[%emt 00:00:06]} Nxd5 {[%clk 00:00:24]} {[%emt 00:00:09]} 31. Qf3 {[%clk
00:00:10]} {[%emt 00:00:05]} Nf6 {[%clk 00:00:23]} {[%emt 00:00:06]} 32. Qg3
{[%clk 00:00:09]} {[%emt 00:00:05]} Qe6 {[%clk 00:00:19]} {[%emt 00:00:10]} 33.
Bc5 {[%clk 00:00:09]} {[%emt 00:00:05]} Ne4 {[%clk 00:00:20]} {[%emt 00:00:04]}
34. Qc7 {[%clk 00:00:11]} {[%emt 00:00:04]} Nxc5 {[%clk 00:00:14]} {[%emt
00:00:11]} 35. Qxc5 {[%clk 00:00:14]} {[%emt 00:00:02]} Qe3+ {[%clk 00:00:18]}
36. Qxe3 {[%clk 00:00:15]} {[%emt 00:00:04]} Rxe3 {[%clk 00:00:21]} {[%emt
00:00:02]} 1/2-1/2

[Event "MCR rapid mládeže 2023 U16"]
[Site "Harachov, Czech Republic"]
[Date "2023.09.09"]
[Round "2.4"]
[White "Vlcek, Vojtech"]
[Black "Babula, Matej"]
[Result "0-1"]
[TimeControl "20min+5s/move"]
[WhiteElo "1534"]
[BlackElo "1865"]

1. d4 {[%clk 00:20:07]} {[%emt 00:00:02]} Nf6 {[%clk 00:20:08]} {[%emt
00:00:03]} 2. c4 {[%clk 00:20:10]} {[%emt 00:00:02]} e6 {[%clk 00:20:11]}
{[%emt 00:00:02]} 3. Nf3 {[%clk 00:20:13]} {[%emt 00:00:02]} b6 {[%clk
00:20:15]} {[%emt 00:00:02]} 4. g3 {[%clk 00:20:15]} {[%emt 00:00:03]} Bb7
{[%clk 00:20:16]} {[%emt 00:00:04]} 5. Bg2 {[%clk 00:20:18]} {[%emt 00:00:01]}
Be7 {[%clk 00:20:19]} {[%emt 00:00:02]} 6. Nc3 {[%clk 00:20:16]} {[%emt
00:00:07]} Ne4 {[%clk 00:20:16]} {[%emt 00:00:07]} 7. Nxe4 {[%clk 00:18:26]}
{[%emt 00:01:55]} Bxe4 {[%clk 00:20:18]} {[%emt 00:00:03]} 8. O-O {[%clk
00:16:40]} {[%emt 00:01:51]} O-O {[%clk 00:19:53]} {[%emt 00:00:31]} 9. a3
{[%clk 00:16:12]} {[%emt 00:00:33]} c6 {[%clk 00:17:46]} {[%emt 00:02:11]} 10.
b4 {[%clk 00:12:46]} {[%emt 00:03:32]} d5 {[%clk 00:16:21]} {[%emt 00:01:31]}
11. c5 {[%clk 00:09:10]} {[%emt 00:03:40]} Nd7 {[%clk 00:11:24]} {[%emt
00:05:02]} 12. cxb6 {[%clk 00:01:55]} {[%emt 00:07:20]} axb6 {[%clk 00:11:16]}
{[%emt 00:00:13]} 13. Bb2 {[%clk 00:01:13]} {[%emt 00:00:47]} b5 {[%clk
00:08:58]} {[%emt 00:02:24]} 14. Ne5 {[%clk 00:00:25]} {[%emt 00:00:53]} Nxe5
{[%clk 00:08:50]} {[%emt 00:00:13]} 15. Bxe4 {[%clk 00:00:23]} {[%emt
00:00:07]} Nc4 {[%clk 00:08:45]} {[%emt 00:00:10]} 16. Bb1 {[%clk 00:00:27]} f5
{[%clk 00:06:23]} {[%emt 00:02:27]} 17. Qc2 {[%clk 00:00:18]} {[%emt 00:00:15]}
Bg5 {[%clk 00:05:23]} {[%emt 00:01:04]} 18. e3 {[%clk 00:00:19]} {[%emt
00:00:04]} Qe8 {[%clk 00:03:50]} {[%emt 00:01:38]} 19. Rd1 {[%clk 00:00:19]}
{[%emt 00:00:05]} Qh5 {[%clk 00:03:43]} {[%emt 00:00:12]} 20. Qc3 {[%clk
00:00:07]} {[%emt 00:00:17]} Qxd1+ {[%clk 00:03:43]} {[%emt 00:00:05]} 0-1

[Event "MCR rapid mládeže 2023 U16"]
[Site "Harachov, Czech Republic"]
[Date "2023.09.09"]
[Round "2.5"]
[White "Juhanak, Daniel"]
[Black "Macosek, Alex"]
[Result "1-0"]
[TimeControl "20min+5s/move"]
[WhiteElo "1878"]
[BlackElo "1508"]

1. Nf3 {[%clk 00:20:07]} {[%emt 00:00:02]} g6 {[%clk 00:20:03]} {[%emt
00:00:07]} 2. c4 {[%clk 00:20:06]} {[%emt 00:00:07]} Bg7 {[%clk 00:20:05]}
{[%emt 00:00:02]} 3. g3 {[%clk 00:20:09]} {[%emt 00:00:02]} Nc6 {[%clk
00:20:04]} {[%emt 00:00:06]} 4. Bg2 {[%clk 00:20:07]} {[%emt 00:00:07]} d6
{[%clk 00:20:07]} {[%emt 00:00:02]} 5. O-O {[%clk 00:20:06]} {[%emt 00:00:06]}
e5 {[%clk 00:20:09]} {[%emt 00:00:02]} 6. Nc3 {[%clk 00:19:39]} {[%emt
00:00:32]} f5 {[%clk 00:20:04]} {[%emt 00:00:10]} 7. d3 {[%clk 00:19:41]}
{[%emt 00:00:04]} Nf6 {[%clk 00:19:09]} {[%emt 00:01:00]} 8. Rb1 {[%clk
00:19:30]} {[%emt 00:00:17]} O-O {[%clk 00:19:00]} {[%emt 00:00:13]} 9. b4
{[%clk 00:19:16]} {[%emt 00:00:20]} h6 {[%clk 00:18:35]} {[%emt 00:00:29]} 10.
b5 {[%clk 00:18:18]} {[%emt 00:01:03]} Ne7 {[%clk 00:18:24]} {[%emt 00:00:16]}
11. Ne1 {[%clk 00:16:29]} {[%emt 00:01:55]} Nh5 {[%clk 00:15:43]} {[%emt
00:02:46]} 12. Nd5 {[%clk 00:15:22]} {[%emt 00:01:12]} Nxd5 {[%clk 00:14:05]}
{[%emt 00:01:44]} 13. Bxd5+ {[%clk 00:14:10]} {[%emt 00:01:17]} Kh7 {[%clk
00:14:06]} {[%emt 00:00:03]} 14. f4 {[%clk 00:12:53]} {[%emt 00:01:23]} exf4
{[%clk 00:10:18]} {[%emt 00:03:53]} 15. gxf4 {[%clk 00:12:19]} {[%emt
00:00:39]} Qe7 {[%clk 00:09:28]} {[%emt 00:00:55]} 16. Ng2 {[%clk 00:11:30]}
{[%emt 00:00:54]} Be6 {[%clk 00:07:17]} {[%emt 00:02:15]} 17. Bxb7 {[%clk
00:10:32]} {[%emt 00:01:04]} Rad8 {[%clk 00:07:12]} {[%emt 00:00:10]} 18. Ba3
{[%clk 00:08:34]} {[%emt 00:02:04]} g5 {[%clk 00:06:12]} {[%emt 00:01:04]} 19.
e3 {[%clk 00:07:44]} {[%emt 00:00:56]} gxf4 {[%clk 00:06:09]} {[%emt 00:00:07]}
20. Qxh5 {[%clk 00:07:32]} {[%emt 00:00:18]} fxe3 {[%clk 00:06:07]} {[%emt
00:00:07]} 21. Rbe1 {[%clk 00:06:30]} {[%emt 00:01:07]} Bd4 {[%clk 00:05:29]}
{[%emt 00:00:43]} 22. Rf4 {[%clk 00:05:42]} {[%emt 00:00:53]} Qf6 {[%clk
00:04:05]} {[%emt 00:01:28]} 23. Kh1 {[%clk 00:03:58]} {[%emt 00:01:49]} Be5
{[%clk 00:02:14]} {[%emt 00:01:56]} 24. Bc1 {[%emt 00:01:02]} Bxf4 {[%clk
00:02:10]} {[%emt 00:00:08]} 25. Nxf4 {[%clk 00:03:05]} {[%emt 00:00:01]} Rg8
{[%clk 00:01:58]} {[%emt 00:00:17]} 26. Bxe3 {[%clk 00:02:44]} {[%emt
00:00:27]} Bf7 {[%clk 00:01:44]} {[%emt 00:00:18]} 27. Qf3 {[%clk 00:02:21]}
{[%emt 00:00:28]} Rg4 {[%clk 00:01:25]} {[%emt 00:00:23]} 28. Nd5 {[%clk
00:01:27]} {[%emt 00:01:00]} Qh4 {[%clk 00:00:38]} {[%emt 00:00:53]} 29. Bf2
{[%clk 00:00:44]} {[%emt 00:00:48]} Qg5 {[%clk 00:00:41]} {[%emt 00:00:01]} 30.
h3 {[%clk 00:00:21]} {[%emt 00:00:29]} Bxd5 {[%clk 00:00:35]} {[%emt 00:00:11]}
31. Bxd5 {[%clk 00:00:21]} {[%emt 00:00:05]} Rf4 {[%clk 00:00:37]} {[%emt
00:00:03]} 32. Qe3 {[%clk 00:00:14]} {[%emt 00:00:12]} Rf8 {[%clk 00:00:13]}
{[%emt 00:00:29]} 33. Rg1 {[%clk 00:00:13]} {[%emt 00:00:06]} Rg4 {[%clk
00:00:08]} {[%emt 00:00:09]} 34. hxg4 {[%clk 00:00:12]} {[%emt 00:00:07]} f4
{[%clk 00:00:12]} {[%emt 00:00:01]} 35. Qe4+ {[%clk 00:00:14]} {[%emt
00:00:02]} Kh8 {[%clk 00:00:14]} {[%emt 00:00:03]} 36. Bd4+ {[%clk 00:00:17]}
{[%emt 00:00:02]} Rf6 {[%clk 00:00:09]} {[%emt 00:00:10]} 37. Qe8+ {[%emt
00:00:07]} 1-0

[Event "MCR rapid mládeže 2023 U16"]
[Site "Harachov, Czech Republic"]
[Date "2023.09.09"]
[Round "2.6"]
[White "Hrbek, Jachym"]
[Black "Langmaier, Michal"]
[Result "1-0"]
[TimeControl "20min+5s/move"]
[WhiteElo "1769"]
[BlackElo "1769"]

1. e4 {[%clk 00:19:56]} {[%emt 00:00:13]} c5 {[%clk 00:20:06]} {[%emt
00:00:05]} 2. b4 {[%clk 00:19:50]} {[%emt 00:00:06]} cxb4 {[%clk 00:19:50]}
{[%emt 00:00:26]} 3. a3 {[%clk 00:19:53]} {[%emt 00:00:02]} bxa3 {[%clk
00:19:30]} {[%emt 00:00:25]} 4. d4 {[%clk 00:19:53]} {[%emt 00:00:04]} e6
{[%clk 00:19:15]} {[%emt 00:00:20]} 5. Nxa3 {[%clk 00:19:01]} {[%emt 00:00:57]}
Bb4+ {[%clk 00:15:40]} {[%emt 00:03:39]} 6. Bd2 {[%clk 00:18:58]} {[%emt
00:00:13]} Bxd2+ {[%clk 00:15:42]} {[%emt 00:00:09]} 7. Qxd2 {[%clk 00:19:00]}
{[%emt 00:00:04]} Ne7 {[%clk 00:15:41]} {[%emt 00:00:05]} 8. Bd3 {[%clk
00:18:46]} {[%emt 00:00:19]} d5 {[%clk 00:15:38]} {[%emt 00:00:09]} 9. e5
{[%clk 00:18:42]} {[%emt 00:00:09]} a6 {[%clk 00:15:09]} {[%emt 00:00:34]} 10.
Nb5 {[%clk 00:17:19]} {[%emt 00:01:28]} O-O {[%clk 00:13:06]} {[%emt 00:02:08]}
11. Nd6 {[%clk 00:17:12]} {[%emt 00:00:11]} Nbc6 {[%clk 00:12:09]} {[%emt
00:01:02]} 12. Ne2 {[%clk 00:16:00]} {[%emt 00:01:17]} Qc7 {[%clk 00:11:07]}
{[%emt 00:01:08]} 13. O-O {[%clk 00:15:11]} {[%emt 00:00:53]} Rd8 {[%clk
00:10:19]} {[%emt 00:00:53]} 14. f4 {[%clk 00:12:01]} {[%emt 00:03:16]} Rxd6
{[%clk 00:09:27]} {[%emt 00:00:56]} 15. exd6 {[%clk 00:12:04]} {[%emt
00:00:02]} Qxd6 {[%clk 00:09:31]} {[%emt 00:00:01]} 16. c3 {[%clk 00:11:48]}
{[%emt 00:00:22]} a5 {[%clk 00:08:19]} {[%emt 00:01:17]} 17. Rf3 {[%clk
00:11:17]} {[%emt 00:00:35]} Ng6 {[%clk 00:06:27]} {[%emt 00:01:58]} 18. Raf1
{[%clk 00:09:08]} {[%emt 00:02:14]} a4 {[%clk 00:06:10]} {[%emt 00:00:22]} 19.
f5 {[%clk 00:08:41]} {[%emt 00:00:31]} exf5 {[%clk 00:06:09]} {[%emt 00:00:07]}
20. Ng3 {[%clk 00:07:21]} {[%emt 00:01:25]} Nce7 {[%clk 00:04:47]} {[%emt
00:01:27]} 21. Qe1 {[%clk 00:04:18]} {[%emt 00:03:08]} a3 {[%clk 00:03:54]}
{[%emt 00:00:58]} 22. Nxf5 {[%clk 00:03:59]} {[%emt 00:00:23]} Bxf5 {[%clk
00:03:58]} {[%emt 00:00:02]} 23. Bxf5 {[%clk 00:04:00]} {[%emt 00:00:05]} Nxf5
{[%clk 00:04:01]} {[%emt 00:00:02]} 24. Rxf5 {[%clk 00:04:03]} {[%emt
00:00:01]} Rf8 {[%clk 00:02:00]} {[%emt 00:02:05]} 25. Qb1 {[%clk 00:03:28]}
{[%emt 00:00:40]} b6 {[%clk 00:01:43]} {[%emt 00:00:22]} 26. Qb5 {[%clk
00:03:08]} {[%emt 00:00:26]} Ne7 {[%clk 00:01:39]} {[%emt 00:00:08]} 27. Rxf7
{[%clk 00:03:06]} {[%emt 00:00:07]} Ng6 {[%clk 00:01:04]} {[%emt 00:00:40]} 28.
Rxf8+ {[%clk 00:02:50]} {[%emt 00:00:20]} Nxf8 {[%clk 00:01:07]} {[%emt
00:00:02]} 29. Qe8 {[%clk 00:02:49]} {[%emt 00:00:06]} a2 {[%clk 00:00:34]}
{[%emt 00:00:38]} 30. Qf7+ {[%clk 00:02:52]} {[%emt 00:00:02]} 1-0